[Event "January 2 Early 2024"]
[Site "https://www.chess.com"]
[Date "2024.01.02"]
[Round "11"]
[White "Timerkhanov, Alexander"]
[Black "Finek, Vaclav"]
[Result "1/2-1/2"]
[Board "38"]
[TimeControl "180+1"]
[WhiteFideId "24177938"]
[BlackFideId "23718293"]
[WhiteElo "2651"]
[BlackElo "2828"]
[WhiteTeam "RUS"]
[BlackTeam "CZE"]
[WhiteClock "0:00:17"]
[BlackClock "0:00:21"]

1. d4 {[%clk 0:03:00]}  d5 {[%clk 0:02:59]} 2. c4 {[%clk 0:02:59]}  c6 {[%clk 0:02:59]} 3. Nf3 {[%clk 0:02:58]}  Nf6 {[%clk 0:03:00]} 4. Nbd2 {[%clk 0:02:58]}  g6 {[%clk 0:03:00]} 5. b3 {[%clk 0:02:57]}  Bg7 {[%clk 0:03:00]} 6. e3 {[%clk 0:02:57]}  O-O {[%clk 0:02:58]} 7. Bb2 {[%clk 0:02:58]}  Bg4 {[%clk 0:02:57]} 8. Bd3 {[%clk 0:02:54]}  Nbd7 {[%clk 0:02:57]} 9. h3 {[%clk 0:02:54]}  e6 {[%clk 0:02:57]} 10. hxg4 {[%clk 0:02:54]}  Nxg4 {[%clk 0:02:56]} 11. Qe2 {[%clk 0:02:42]}  h5 {[%clk 0:02:55]} 12. e4 {[%clk 0:02:38]}  dxc4 {[%clk 0:02:55]} 13. Nxc4 {[%clk 0:02:36]}  c5 {[%clk 0:02:54]} 14. Ne3 {[%clk 0:02:11]}  cxd4 {[%clk 0:02:51]} 15. Nxg4 {[%clk 0:02:09]}  hxg4 {[%clk 0:02:51]} 16. Nd2 {[%clk 0:02:05]}  Qg5 {[%clk 0:02:46]} 17. O-O-O {[%clk 0:01:56]}  Ne5 {[%clk 0:02:42]} 18. Kb1 {[%clk 0:01:55]}  Nc6 {[%clk 0:02:35]} 19. f3 {[%clk 0:01:44]}  Rfd8 {[%clk 0:02:25]} 20. g3 {[%clk 0:01:38]}  gxf3 {[%clk 0:02:24]} 21. Nxf3 {[%clk 0:01:36]}  Qxg3 {[%clk 0:02:24]} 22. Rdg1 {[%clk 0:01:31]}  Qf4 {[%clk 0:02:24]} 23. Rh4 {[%clk 0:01:20]}  Qe3 {[%clk 0:02:16]} 24. Qf1 {[%clk 0:01:13]}  Nb4 {[%clk 0:02:15]} 25. Bc4 {[%clk 0:01:05]}  Bf6 {[%clk 0:01:51]} 26. Rh3 {[%clk 0:00:50]}  Qxe4+ {[%clk 0:01:49]} 27. Ka1 {[%clk 0:00:42]}  Rac8 {[%clk 0:01:23]} 28. Nd2 {[%clk 0:00:36]}  Qe5 {[%clk 0:00:50]} 29. a3 {[%clk 0:00:32]}  Nc2+ {[%clk 0:00:49]} 30. Ka2 {[%clk 0:00:33]}  Ne3 {[%clk 0:00:49]} 31. Nf3 {[%clk 0:00:28]}  Qf5 {[%clk 0:00:45]} 32. Qd3 {[%clk 0:00:26]}  Nxc4 {[%clk 0:00:23]} 33. Qxf5 {[%clk 0:00:20]}  exf5 {[%clk 0:00:24]} 34. bxc4 {[%clk 0:00:21]}  Rxc4 {[%clk 0:00:25]} 35. Rd1 {[%clk 0:00:21]}  b5 {[%clk 0:00:23]} 36. Rh2 {[%clk 0:00:18]}  g5 {[%clk 0:00:19]} 37. Rhd2 {[%clk 0:00:19]}  g4 {[%clk 0:00:19]} 38. Nxd4 {[%clk 0:00:19]}  Rd5 {[%clk 0:00:15]} 39. Ne2 {[%clk 0:00:14]}  Rxd2 {[%clk 0:00:15]} 40. Rxd2 {[%clk 0:00:14]}  Bxb2 {[%clk 0:00:16]} 41. Kxb2 {[%clk 0:00:14]}  f4 {[%clk 0:00:15]} 42. Rd5 {[%clk 0:00:14]}  f3 {[%clk 0:00:14]} 43. Rg5+ {[%clk 0:00:15]}  Kh7 {[%clk 0:00:12]} 44. Ng3 {[%clk 0:00:16]}  Rf4 {[%clk 0:00:08]} 45. Kc3 {[%clk 0:00:14]}  f2 {[%clk 0:00:08]} 46. Nf1 {[%clk 0:00:14]}  f5 {[%clk 0:00:07]} 47. Kd2 {[%clk 0:00:14]}  Kh6 {[%clk 0:00:08]} 48. Rg8 {[%clk 0:00:13]}  Rf3 {[%clk 0:00:08]} 49. Ke2 {[%clk 0:00:14]}  Rxa3 {[%clk 0:00:09]} 50. Kxf2 {[%clk 0:00:13]}  Rf3+ {[%clk 0:00:07]} 51. Kg2 {[%clk 0:00:13]}  a5 {[%clk 0:00:06]} 52. Ng3 {[%clk 0:00:13]}  a4 {[%clk 0:00:06]} 53. Rb8 {[%clk 0:00:12]}  Rb3 {[%clk 0:00:04]} 54. Nxf5+ {[%clk 0:00:11]}  Kg5 {[%clk 0:00:05]} 55. Nd4 {[%clk 0:00:12]}  Rb2+ {[%clk 0:00:05]} 56. Kg3 {[%clk 0:00:12]}  a3 {[%clk 0:00:06]} 57. Ra8 {[%clk 0:00:10]}  a2 {[%clk 0:00:06]} 58. Ra5 {[%clk 0:00:09]}  Kf6 {[%clk 0:00:06]} 59. Nxb5 {[%clk 0:00:09]}  Rxb5 {[%clk 0:00:05]} 60. Rxa2 {[%clk 0:00:08]}  Kg5 {[%clk 0:00:05]} 61. Ra3 {[%clk 0:00:08]}  Rc5 {[%clk 0:00:06]} 62. Rb3 {[%clk 0:00:09]}  Rd5 {[%clk 0:00:06]} 63. Ra3 {[%clk 0:00:09]}  Rb5 {[%clk 0:00:07]} 64. Rc3 {[%clk 0:00:10]}  Ra5 {[%clk 0:00:07]} 65. Rd3 {[%clk 0:00:10]}  Rc5 {[%clk 0:00:08]} 66. Re3 {[%clk 0:00:11]}  Rd5 {[%clk 0:00:08]} 67. Rc3 {[%clk 0:00:11]}  Rb5 {[%clk 0:00:08]} 68. Ra3 {[%clk 0:00:11]}  Rc5 {[%clk 0:00:09]} 69. Rb3 {[%clk 0:00:12]}  Re5 {[%clk 0:00:09]} 70. Ra3 {[%clk 0:00:12]}  Rf5 {[%clk 0:00:10]} 71. Rb3 {[%clk 0:00:13]}  Re5 {[%clk 0:00:10]} 72. Ra3 {[%clk 0:00:13]}  Rd5 {[%clk 0:00:11]} 73. Rb3 {[%clk 0:00:14]}  Rc5 {[%clk 0:00:11]} 74. Ra3 {[%clk 0:00:14]}  Rd5 {[%clk 0:00:12]} 75. Rb3 {[%clk 0:00:15]}  Ra5 {[%clk 0:00:13]} 76. Rc3 {[%clk 0:00:15]}  Rb5 {[%clk 0:00:13]} 77. Rd3 {[%clk 0:00:15]}  Rc5 {[%clk 0:00:14]} 78. Re3 {[%clk 0:00:15]}  Rc4 {[%clk 0:00:14]} 79. Re5+ {[%clk 0:00:15]}  Kf6 {[%clk 0:00:14]} 80. Re3 {[%clk 0:00:16]}  Rd4 {[%clk 0:00:15]} 81. Ra3 {[%clk 0:00:15]}  Kf5 {[%clk 0:00:16]} 82. Rb3 {[%clk 0:00:15]}  Ke4 {[%clk 0:00:16]} 83. Kxg4 {[%clk 0:00:15]}  Kd5+ {[%clk 0:00:17]} 84. Kf5 {[%clk 0:00:15]}  Kc4 {[%clk 0:00:17]} 85. Rf3 {[%clk 0:00:15]}  Rd5+ {[%clk 0:00:18]} 86. Ke4 {[%clk 0:00:15]}  Rc5 {[%clk 0:00:19]} 87. Ke3 {[%clk 0:00:15]}  Kb5 {[%clk 0:00:20]} 88. Rf4 {[%clk 0:00:15]}  Kc6 {[%clk 0:00:21]} 89. Re4 {[%clk 0:00:16]}  Rd5 {[%clk 0:00:21]} 90. Rd4 {[%clk 0:00:16]}  Rxd4 {[%clk 0:00:21]} 91. Kxd4 {[%clk 0:00:17]} 1/2-1/2

[Event "January 2 Early 2024"]
[Site "https://www.chess.com"]
[Date "2024.01.02"]
[Round "11"]
[White "Narayanan, Srinath"]
[Black "Jakubowski, Krzysztof"]
[Result "1/2-1/2"]
[Board "39"]
[TimeControl "180+1"]
[WhiteFideId "5018420"]
[BlackFideId "1112848"]
[WhiteElo "2824"]
[BlackElo "2647"]
[WhiteTeam "IND"]
[BlackTeam "POL"]
[WhiteClock "0:00:05"]
[BlackClock "0:00:05"]

1. d4 {[%clk 0:03:00]}  Nf6 {[%clk 0:02:59]} 2. Nf3 {[%clk 0:03:01]}  e6 {[%clk 0:02:58]} 3. c4 {[%clk 0:03:01]}  b6 {[%clk 0:02:57]} 4. g3 {[%clk 0:03:01]}  Be7 {[%clk 0:02:52]} 5. Bg2 {[%clk 0:03:02]}  c6 {[%clk 0:02:52]} 6. O-O {[%clk 0:03:01]}  d5 {[%clk 0:02:52]} 7. Qc2 {[%clk 0:03:01]}  O-O {[%clk 0:02:51]} 8. Nbd2 {[%clk 0:03:02]}  Nbd7 {[%clk 0:02:46]} 9. e4 {[%clk 0:03:00]}  Bb7 {[%clk 0:02:43]} 10. e5 {[%clk 0:02:59]}  Ne8 {[%clk 0:02:42]} 11. b3 {[%clk 0:02:57]}  Rc8 {[%clk 0:02:41]} 12. Bb2 {[%clk 0:02:54]}  Qc7 {[%clk 0:02:40]} 13. Rfd1 {[%clk 0:02:47]}  Qb8 {[%clk 0:02:40]} 14. Rac1 {[%clk 0:02:46]}  Nc7 {[%clk 0:02:39]} 15. a3 {[%clk 0:02:45]}  c5 {[%clk 0:02:32]} 16. cxd5 {[%clk 0:02:42]}  exd5 {[%clk 0:02:28]} 17. Qd3 {[%clk 0:02:37]}  Ba6 {[%clk 0:02:15]} 18. Qf5 {[%clk 0:02:26]}  Ne6 {[%clk 0:02:11]} 19. h4 {[%clk 0:02:23]}  g6 {[%clk 0:02:08]} 20. Qb1 {[%clk 0:02:20]}  Rfd8 {[%clk 0:01:55]} 21. Nf1 {[%clk 0:02:20]}  Be2 {[%clk 0:01:46]} 22. Re1 {[%clk 0:01:54]}  Bxf3 {[%clk 0:01:41]} 23. Bxf3 {[%clk 0:01:54]}  cxd4 {[%clk 0:01:38]} 24. Rxc8 {[%clk 0:01:55]}  Rxc8 {[%clk 0:01:35]} 25. Bxd5 {[%clk 0:01:54]}  Ndf8 {[%clk 0:01:27]} 26. Nd2 {[%clk 0:01:47]}  Rd8 {[%clk 0:01:21]} 27. Bc4 {[%clk 0:01:46]}  b5 {[%clk 0:01:19]} 28. Bf1 {[%clk 0:01:46]}  a5 {[%clk 0:01:16]} 29. Qe4 {[%clk 0:01:42]}  Rc8 {[%clk 0:01:08]} 30. h5 {[%clk 0:01:40]}  b4 {[%clk 0:00:58]} 31. a4 {[%clk 0:01:32]}  Nc5 {[%clk 0:00:44]} 32. Qg4 {[%clk 0:01:14]}  Rd8 {[%clk 0:00:40]} 33. Bc4 {[%clk 0:01:11]}  Nce6 {[%clk 0:00:38]} 34. Nf3 {[%clk 0:00:57]}  Qb6 {[%clk 0:00:36]} 35. Rd1 {[%clk 0:00:57]}  d3 {[%clk 0:00:30]} 36. Rxd3 {[%clk 0:00:53]}  Rxd3 {[%clk 0:00:29]} 37. Bxd3 {[%clk 0:00:54]}  Bc5 {[%clk 0:00:30]} 38. Kg2 {[%clk 0:00:45]}  Bxf2 {[%clk 0:00:29]} 39. Bc4 {[%clk 0:00:39]}  Bc5 {[%clk 0:00:27]} 40. Bc1 {[%clk 0:00:40]}  Qd8 {[%clk 0:00:26]} 41. Bh6 {[%clk 0:00:25]}  Qd1 {[%clk 0:00:20]} 42. Bxf8 {[%clk 0:00:20]}  Kxf8 {[%clk 0:00:19]} 43. hxg6 {[%clk 0:00:16]}  hxg6 {[%clk 0:00:19]} 44. Qe4 {[%clk 0:00:15]}  Kg7 {[%clk 0:00:15]} 45. Bxe6 {[%clk 0:00:13]}  fxe6 {[%clk 0:00:15]} 46. Qc4 {[%clk 0:00:11]}  Be3 {[%clk 0:00:12]} 47. Qc7+ {[%clk 0:00:10]}  Kh6 {[%clk 0:00:12]} 48. Qc4 {[%clk 0:00:09]}  Qb1 {[%clk 0:00:10]} 49. Qh4+ {[%clk 0:00:07]}  Kg7 {[%clk 0:00:10]} 50. Qf6+ {[%clk 0:00:07]}  Kh7 {[%clk 0:00:08]} 51. Qf7+ {[%clk 0:00:06]}  Kh6 {[%clk 0:00:08]} 52. Qxe6 {[%clk 0:00:04]}  Qc2+ {[%clk 0:00:05]} 53. Kh3 {[%clk 0:00:04]}  Qd1 {[%clk 0:00:04]} 54. Nh2 {[%clk 0:00:05]}  Qh5+ {[%clk 0:00:03]} 55. Kg2 {[%clk 0:00:04]}  Qe2+ {[%clk 0:00:04]} 56. Kh3 {[%clk 0:00:04]}  Qh5+ {[%clk 0:00:04]} 57. Kg2 {[%clk 0:00:05]}  Qe2+ {[%clk 0:00:04]} 58. Kh3 {[%clk 0:00:05]}  Qh5+ {[%clk 0:00:05]} 1/2-1/2

[Event "January 2 Early 2024"]
[Site "https://www.chess.com"]
[Date "2024.01.02"]
[Round "11"]
[White "Al-Tarboush, Ward"]
[Black "Anuj Shrivatri"]
[Result "1/2-1/2"]
[Board "40"]
[TimeControl "180+1"]
[WhiteFideId "7601450"]
[BlackFideId "35070924"]
[WhiteElo "2628"]
[BlackElo "2771"]
[WhiteTeam "NOR"]
[BlackTeam "IND"]
[WhiteClock "0:00:11"]
[BlackClock "0:00:15"]

1. e4 {[%clk 0:03:00]}  c6 {[%clk 0:02:53]} 2. Nf3 {[%clk 0:02:59]}  d5 {[%clk 0:02:52]} 3. Nc3 {[%clk 0:03:00]}  dxe4 {[%clk 0:02:52]} 4. Nxe4 {[%clk 0:03:00]}  Nf6 {[%clk 0:02:51]} 5. Nxf6+ {[%clk 0:03:00]}  exf6 {[%clk 0:02:51]} 6. Bc4 {[%clk 0:03:00]}  Bd6 {[%clk 0:02:50]} 7. Qe2+ {[%clk 0:03:00]}  Be7 {[%clk 0:02:50]} 8. O-O {[%clk 0:02:59]}  O-O {[%clk 0:02:51]} 9. d4 {[%clk 0:02:59]}  Bd6 {[%clk 0:02:50]} 10. Re1 {[%clk 0:02:59]}  Nd7 {[%clk 0:02:49]} 11. Bd3 {[%clk 0:02:53]}  Nb6 {[%clk 0:02:48]} 12. c4 {[%clk 0:02:53]}  Bc7 {[%clk 0:02:49]} 13. Be3 {[%clk 0:02:49]}  Re8 {[%clk 0:02:48]} 14. Nd2 {[%clk 0:02:46]}  g6 {[%clk 0:02:47]} 15. Qf3 {[%clk 0:02:40]}  f5 {[%clk 0:02:45]} 16. Nb3 {[%clk 0:02:10]}  Be6 {[%clk 0:02:36]} 17. Rac1 {[%clk 0:02:09]}  Na4 {[%clk 0:02:16]} 18. Rc2 {[%clk 0:02:00]}  h5 {[%clk 0:02:07]} 19. Rce2 {[%clk 0:01:51]}  Qd7 {[%clk 0:02:03]} 20. Bf4 {[%clk 0:01:46]}  Bxf4 {[%clk 0:02:02]} 21. Qxf4 {[%clk 0:01:46]}  Rad8 {[%clk 0:02:02]} 22. h4 {[%clk 0:01:37]}  Nb6 {[%clk 0:01:52]} 23. Rc1 {[%clk 0:01:19]}  Na4 {[%clk 0:01:41]} 24. g3 {[%clk 0:01:15]}  Qd6 {[%clk 0:01:38]} 25. Qxd6 {[%clk 0:01:13]}  Rxd6 {[%clk 0:01:39]} 26. d5 {[%clk 0:01:08]}  cxd5 {[%clk 0:01:35]} 27. c5 {[%clk 0:01:01]}  Rdd8 {[%clk 0:01:34]} 28. Bb5 {[%clk 0:00:50]}  Bd7 {[%clk 0:01:35]} 29. Bxd7 {[%clk 0:00:46]}  Rxe2 {[%clk 0:01:35]} 30. Bxa4 {[%clk 0:00:46]}  Rxb2 {[%clk 0:01:36]} 31. a3 {[%clk 0:00:24]}  d4 {[%clk 0:01:36]} 32. Rd1 {[%clk 0:00:22]}  d3 {[%clk 0:01:36]} 33. Nd2 {[%clk 0:00:20]}  Rc2 {[%clk 0:01:30]} 34. f4 {[%clk 0:00:12]}  Rxc5 {[%clk 0:01:30]} 35. Kf2 {[%clk 0:00:12]}  Ra5 {[%clk 0:01:30]} 36. Bb3 {[%clk 0:00:11]}  Rxa3 {[%clk 0:01:30]} 37. Ke3 {[%clk 0:00:12]}  b5 {[%clk 0:01:30]} 38. Rc1 {[%clk 0:00:11]}  a5 {[%clk 0:01:29]} 39. Rc7 {[%clk 0:00:11]}  Rf8 {[%clk 0:01:05]} 40. Ra7 {[%clk 0:00:11]}  a4 {[%clk 0:01:05]} 41. Kd4 {[%clk 0:00:11]}  Rxb3 {[%clk 0:01:04]} 42. Nxb3 {[%clk 0:00:11]}  axb3 {[%clk 0:01:04]} 43. Kxd3 {[%clk 0:00:11]}  Rc8 {[%clk 0:00:57]} 44. Ra3 {[%clk 0:00:09]}  Rd8+ {[%clk 0:00:28]} 45. Ke3 {[%clk 0:00:08]}  b4 {[%clk 0:00:18]} 46. Rxb3 {[%clk 0:00:08]}  Rb8 {[%clk 0:00:19]} 47. Kd4 {[%clk 0:00:09]}  Kg7 {[%clk 0:00:19]} 48. Kc4 {[%clk 0:00:09]}  Kf6 {[%clk 0:00:20]} 49. Rxb4 {[%clk 0:00:09]}  Rxb4+ {[%clk 0:00:21]} 50. Kxb4 {[%clk 0:00:10]}  Ke6 {[%clk 0:00:21]} 51. Kc5 {[%clk 0:00:11]}  f6 {[%clk 0:00:21]} 52. Kc6 {[%clk 0:00:11]}  g5 {[%clk 0:00:21]} 53. Kc5 {[%clk 0:00:10]}  gxf4 {[%clk 0:00:15]} 54. gxf4 {[%clk 0:00:09]}  Ke7 {[%clk 0:00:14]} 55. Kd5 {[%clk 0:00:10]}  Kd7 {[%clk 0:00:14]} 56. Kc5 {[%clk 0:00:10]}  Ke6 {[%clk 0:00:14]} 57. Kc6 {[%clk 0:00:11]}  Ke7 {[%clk 0:00:15]} 58. Kd5 {[%clk 0:00:10]}  Kd7 {[%clk 0:00:15]} 59. Kc5 {[%clk 0:00:11]}  Ke7 {[%clk 0:00:15]} 60. Kc6 {[%clk 0:00:11]}  Ke6 {[%clk 0:00:15]} 61. Kc5 {[%clk 0:00:11]}  Ke7 {[%clk 0:00:15]} 1/2-1/2

[Event "January 2 Early 2024"]
[Site "https://www.chess.com"]
[Date "2024.01.02"]
[Round "11"]
[White "Haug, Havard"]
[Black "Souleidis, Georgios"]
[Result "0-1"]
[Board "41"]
[TimeControl "180+1"]
[WhiteFideId "1547887"]
[BlackFideId "4206827"]
[WhiteElo "2769"]
[BlackElo "2625"]
[WhiteTeam "NOR"]
[BlackTeam "GRE"]
[WhiteClock "0:00:00"]
[BlackClock "0:00:09"]

1. b3 {[%clk 0:03:00]}  d5 {[%clk 0:02:59]} 2. Bb2 {[%clk 0:02:56]}  Bf5 {[%clk 0:02:59]} 3. f4 {[%clk 0:02:54]}  e6 {[%clk 0:02:59]} 4. Nf3 {[%clk 0:02:54]}  Nf6 {[%clk 0:03:00]} 5. e3 {[%clk 0:02:55]}  a6 {[%clk 0:03:00]} 6. Be2 {[%clk 0:02:55]}  c5 {[%clk 0:02:58]} 7. O-O {[%clk 0:02:53]}  Nc6 {[%clk 0:02:59]} 8. Ne5 {[%clk 0:02:51]}  Rc8 {[%clk 0:02:56]} 9. d3 {[%clk 0:02:49]}  Bd6 {[%clk 0:02:51]} 10. Nd2 {[%clk 0:02:48]}  O-O {[%clk 0:02:50]} 11. Ndf3 {[%clk 0:02:47]}  Ng4 {[%clk 0:02:42]} 12. Nxg4 {[%clk 0:02:44]}  Bxg4 {[%clk 0:02:43]} 13. Qe1 {[%clk 0:02:44]}  Bxf3 {[%clk 0:02:36]} 14. Bxf3 {[%clk 0:02:45]}  Be7 {[%clk 0:02:37]} 15. e4 {[%clk 0:02:44]}  dxe4 {[%clk 0:02:09]} 16. dxe4 {[%clk 0:02:38]}  Nd4 {[%clk 0:02:10]} 17. Qf2 {[%clk 0:02:33]}  Nxf3+ {[%clk 0:01:57]} 18. Qxf3 {[%clk 0:02:34]}  c4 {[%clk 0:01:53]} 19. f5 {[%clk 0:02:09]}  exf5 {[%clk 0:01:42]} 20. exf5 {[%clk 0:02:07]}  cxb3 {[%clk 0:01:17]} 21. Qxb3 {[%clk 0:01:54]}  b5 {[%clk 0:00:50]} 22. f6 {[%clk 0:01:50]}  Bxf6 {[%clk 0:00:42]} 23. Rxf6 {[%clk 0:00:57]}  gxf6 {[%clk 0:00:43]} 24. Qg3+ {[%clk 0:00:49]}  Kh8 {[%clk 0:00:42]} 25. Qf3 {[%clk 0:00:50]}  Qb6+ {[%clk 0:00:32]} 26. Kh1 {[%clk 0:00:49]}  Rc6 {[%clk 0:00:32]} 27. Rf1 {[%clk 0:00:49]}  Re8 {[%clk 0:00:26]} 28. h3 {[%clk 0:00:46]}  Ree6 {[%clk 0:00:26]} 29. Qf5 {[%clk 0:00:29]}  Qc5 {[%clk 0:00:23]} 30. Qg4 {[%clk 0:00:17]}  Qxc2 {[%clk 0:00:17]} 31. Ba1 {[%clk 0:00:16]}  Qg6 {[%clk 0:00:16]} 32. Qf3 {[%clk 0:00:12]}  h5 {[%clk 0:00:15]} 33. Rd1 {[%clk 0:00:08]}  Kg7 {[%clk 0:00:14]} 34. Kh2 {[%clk 0:00:04]}  Rcd6 {[%clk 0:00:12]} 35. Rf1 {[%clk 0:00:02]}  Rd3 {[%clk 0:00:11]} 36. Qf4 {[%clk 0:00:02]}  Red6 {[%clk 0:00:03]} 37. Rf2 {[%clk 0:00:02]}  Re6 {[%clk 0:00:02]} 38. Bb2 {[%clk 0:00:03]}  Rd5 {[%clk 0:00:03]} 39. Bc1 {[%clk 0:00:03]}  Ree5 {[%clk 0:00:01]} 40. Bb2 {[%clk 0:00:02]}  Rf5 {[%clk 0:00:02]} 41. Qe3 {[%clk 0:00:01]}  Rxf2 {[%clk 0:00:02]} 42. Qxf2 {[%clk 0:00:02]}  Rf5 {[%clk 0:00:02]} 43. Qe3 {[%clk 0:00:02]}  h4 {[%clk 0:00:03]} 44. Qe1 {[%clk 0:00:01]}  Qg3+ {[%clk 0:00:02]} 45. Qxg3+ {[%clk 0:00:02]}  hxg3+ {[%clk 0:00:03]} 46. Kxg3 {[%clk 0:00:03]}  Rd5 {[%clk 0:00:04]} 47. Kf3 {[%clk 0:00:02]}  Rd2 {[%clk 0:00:04]} 48. Ba3 {[%clk 0:00:02]}  Rxa2 {[%clk 0:00:04]} 49. Bc5 {[%clk 0:00:03]}  a5 {[%clk 0:00:04]} 50. h4 {[%clk 0:00:03]}  b4 {[%clk 0:00:05]} 51. g4 {[%clk 0:00:04]}  Rb2 {[%clk 0:00:05]} 52. Bd4 {[%clk 0:00:05]}  Rb3+ {[%clk 0:00:05]} 53. Kf4 {[%clk 0:00:05]}  a4 {[%clk 0:00:06]} 54. g5 {[%clk 0:00:06]}  a3 {[%clk 0:00:06]} 55. h5 {[%clk 0:00:06]}  Rb1 {[%clk 0:00:05]} 56. Bxf6+ {[%clk 0:00:05]}  Kh7 {[%clk 0:00:05]} 57. Kf5 {[%clk 0:00:05]}  a2 {[%clk 0:00:05]} 58. g6+ {[%clk 0:00:01]}  fxg6+ {[%clk 0:00:06]} 59. hxg6+ {[%clk 0:00:01]}  Kg8 {[%clk 0:00:07]} 60. Ke6 {[%clk 0:00:01]}  a1=Q {[%clk 0:00:07]} 61. Bxa1 {[%clk 0:00:01]}  Rxa1 {[%clk 0:00:08]} 62. Kd5 {[%clk 0:00:01]}  b3 {[%clk 0:00:08]} 63. Kc5 {[%clk 0:00:01]}  b2 {[%clk 0:00:09]} 64. Kc6 {[%clk 0:00:00]}  b1=Q {[%clk 0:00:09]} 0-1

[Event "January 2 Early 2024"]
[Site "https://www.chess.com"]
[Date "2024.01.02"]
[Round "11"]
[White "Liyanage, Ranindu Dilshan"]
[Black "Srdanovic, Jovana"]
[Result "1-0"]
[Board "47"]
[TimeControl "180+1"]
[WhiteFideId "9915834"]
[BlackFideId "954810"]
[WhiteElo "2713"]
[BlackElo "2531"]
[WhiteTeam "SRI"]
[BlackTeam "SRB"]
[WhiteClock "0:00:23"]
[BlackClock "0:00:19"]

1. e4 {[%clk 0:03:00]}  c5 {[%clk 0:02:58]} 2. Nc3 {[%clk 0:03:00]}  Nc6 {[%clk 0:02:56]} 3. Bb5 {[%clk 0:03:01]}  Nd4 {[%clk 0:02:56]} 4. Bc4 {[%clk 0:03:00]}  e6 {[%clk 0:02:56]} 5. Nge2 {[%clk 0:03:01]}  a6 {[%clk 0:02:56]} 6. a4 {[%clk 0:03:01]}  Ne7 {[%clk 0:02:53]} 7. O-O {[%clk 0:03:01]}  Nec6 {[%clk 0:02:54]} 8. Ng3 {[%clk 0:02:58]}  g6 {[%clk 0:02:43]} 9. d3 {[%clk 0:02:54]}  Bg7 {[%clk 0:02:41]} 10. f4 {[%clk 0:02:55]}  d6 {[%clk 0:02:39]} 11. f5 {[%clk 0:02:43]}  exf5 {[%clk 0:02:27]} 12. exf5 {[%clk 0:02:32]}  O-O {[%clk 0:02:26]} 13. fxg6 {[%clk 0:02:22]}  hxg6 {[%clk 0:02:27]} 14. Nce4 {[%clk 0:02:01]}  Ne5 {[%clk 0:02:22]} 15. Bg5 {[%clk 0:01:55]}  Qd7 {[%clk 0:02:21]} 16. Nf6+ {[%clk 0:01:50]}  Bxf6 {[%clk 0:02:21]} 17. Bxf6 {[%clk 0:01:51]}  Nxc4 {[%clk 0:02:21]} 18. Qc1 {[%clk 0:01:40]}  Kh7 {[%clk 0:01:38]} 19. Rf4 {[%clk 0:01:04]}  g5 {[%clk 0:01:38]} 20. Bxg5 {[%clk 0:00:59]}  f5 {[%clk 0:01:32]} 21. Rh4+ {[%clk 0:00:55]}  Kg6 {[%clk 0:01:30]} 22. Rh6+ {[%clk 0:00:54]}  Kg7 {[%clk 0:01:29]} 23. Nh5+ {[%clk 0:00:53]}  Kg8 {[%clk 0:01:28]} 24. Kh1 {[%clk 0:00:47]}  Ne5 {[%clk 0:01:27]} 25. Nf6+ {[%clk 0:00:45]}  Rxf6 {[%clk 0:01:25]} 26. Bxf6 {[%clk 0:00:46]}  Nf7 {[%clk 0:01:16]} 27. Rg6+ {[%clk 0:00:45]}  Kf8 {[%clk 0:01:16]} 28. Qe3 {[%clk 0:00:41]}  f4 {[%clk 0:01:10]} 29. Bg7+ {[%clk 0:00:38]}  Kg8 {[%clk 0:01:08]} 30. Qe4 {[%clk 0:00:34]}  Nf5 {[%clk 0:01:00]} 31. Bc3+ {[%clk 0:00:26]}  Kf8 {[%clk 0:00:44]} 32. Qxf4 {[%clk 0:00:25]}  b5 {[%clk 0:00:31]} 33. Rf1 {[%clk 0:00:24]}  b4 {[%clk 0:00:27]} 34. Bf6 {[%clk 0:00:24]}  Qe6 {[%clk 0:00:19]} 35. Bg7+ {[%clk 0:00:23]} 1-0

[Event "January 2 Early 2024"]
[Site "https://www.chess.com"]
[Date "2024.01.02"]
[Round "11"]
[White "Kopczynski, Michal"]
[Black "Rakitin, Daniil"]
[Result "0-1"]
[Board "49"]
[TimeControl "180+1"]
[WhiteFideId "1124200"]
[BlackFideId "24219762"]
[WhiteElo "2525"]
[BlackElo "2705"]
[WhiteTeam "POL"]
[BlackTeam "RUS"]
[WhiteClock "0:01:06"]
[BlackClock "0:01:02"]

1. e4 {[%clk 0:03:00]}  c6 {[%clk 0:03:00]} 2. d4 {[%clk 0:03:01]}  d5 {[%clk 0:03:00]} 3. Nc3 {[%clk 0:03:02]}  dxe4 {[%clk 0:03:00]} 4. Nxe4 {[%clk 0:03:02]}  Nf6 {[%clk 0:03:01]} 5. Ng3 {[%clk 0:03:03]}  h5 {[%clk 0:03:01]} 6. Bd3 {[%clk 0:03:03]}  h4 {[%clk 0:03:01]} 7. N3e2 {[%clk 0:03:03]}  h3 {[%clk 0:02:58]} 8. Nxh3 {[%clk 0:03:03]}  Bxh3 {[%clk 0:02:58]} 9. gxh3 {[%clk 0:03:03]}  e6 {[%clk 0:02:58]} 10. Bg5 {[%clk 0:02:57]}  Qd5 {[%clk 0:02:56]} 11. Rg1 {[%clk 0:02:50]}  Nbd7 {[%clk 0:02:48]} 12. Qd2 {[%clk 0:02:47]}  Be7 {[%clk 0:02:39]} 13. h4 {[%clk 0:02:47]}  g6 {[%clk 0:02:36]} 14. Nf4 {[%clk 0:02:40]}  Qxd4 {[%clk 0:02:24]} 15. O-O-O {[%clk 0:02:35]}  O-O-O {[%clk 0:02:17]} 16. Qa5 {[%clk 0:02:21]}  Bb4 {[%clk 0:01:47]} 17. c3 {[%clk 0:01:48]}  Qxf4+ {[%clk 0:01:42]} 18. Bxf4 {[%clk 0:01:46]}  Bxa5 {[%clk 0:01:43]} 19. Bg5 {[%clk 0:01:43]}  Rde8 {[%clk 0:01:36]} 20. Bc4 {[%clk 0:01:33]}  Bd8 {[%clk 0:01:25]} 21. Be3 {[%clk 0:01:32]}  Rxh4 {[%clk 0:01:18]} 22. Be2 {[%clk 0:01:30]}  Nd5 {[%clk 0:01:16]} 23. Bxa7 {[%clk 0:01:27]}  Bb6 {[%clk 0:01:14]} 24. Bxb6 {[%clk 0:01:26]}  N7xb6 {[%clk 0:01:15]} 25. c4 {[%clk 0:01:23]}  Nf4 {[%clk 0:01:15]} 26. Bf3 {[%clk 0:01:23]}  Rxh2 {[%clk 0:01:15]} 27. Rh1 {[%clk 0:01:22]}  Reh8 {[%clk 0:01:14]} 28. Rxh2 {[%clk 0:01:23]}  Rxh2 {[%clk 0:01:15]} 29. Rd2 {[%clk 0:01:23]}  Rxf2 {[%clk 0:01:13]} 30. Rxf2 {[%clk 0:01:23]}  Nd3+ {[%clk 0:01:14]} 31. Kd2 {[%clk 0:01:23]}  Nxf2 {[%clk 0:01:15]} 32. b3 {[%clk 0:01:23]}  Nh3 {[%clk 0:01:14]} 33. Ke3 {[%clk 0:01:21]}  Ng5 {[%clk 0:01:03]} 34. Bg2 {[%clk 0:01:19]}  e5 {[%clk 0:01:04]} 35. a4 {[%clk 0:01:15]}  f5 {[%clk 0:01:03]} 36. a5 {[%clk 0:01:15]}  Nd7 {[%clk 0:01:02]} 37. b4 {[%clk 0:01:16]}  f4+ {[%clk 0:01:02]} 38. Kd3 {[%clk 0:01:06]}  Kc7 {[%clk 0:01:02]} 0-1